bitfinex-derivatives/quotes_SOLF0:USTF0_20251201
["timestamp","ask_amount","ask_price","bid_price","bid_amount"]
[1764547949449,0.05745218,131.33,131.23,21.58349869]
[1764547949450,11.4,131.31,131.23,21.58349869]
[1764547949648,7.616,131.28,131.19,6.39249869]
[1764547949847,7.67428365,131.28,131.18,21.58349869]
[1764547950042,0.0488875,131.24,131.18,21.58349869]
[1764547950645,0.0488875,131.24,131.14,62.0]
[1764547950952,19.016,131.26,131.15,21.58349869]
[1764547951149,0.05704024,131.2,131.15,21.58349869]
[1764547951450,0.05704024,131.2,131.15,24.76349869]
[1764547951451,7.616,131.18,131.15,24.76349869]
[1764547951647,5.00509381,131.17,131.15,31.62509869]
[1764547951845,7.21934144,131.18,131.15,31.62509869]
[1764547952150,7.21934144,131.18,131.15,22.10113004]
[1764547952151,0.05600117,131.17,131.15,22.10113004]
[1764547952352,7.21934144,131.25,131.17,6.8609]
[1764547952547,7.21934144,131.25,131.15,1.90710989]
[1764547952754,7.21934144,131.25,131.15,21.58349869]
[1764547952949,7.21934144,131.25,131.15,2.53718419]
[1764547953150,7.21934144,131.21,131.13,21.58349869]
[1764547953348,18.61934144,131.21,131.06,8.02657]
[1764547953543,0.05741702,131.18,131.16,0.05682609]
[1764547953749,0.05624629,131.18,131.12,0.05459319]
[1764547953950,0.05624629,131.18,131.13,0.05512103]
[1764547954550,11.4,131.17,131.1,21.58349869]
[1764547954754,11.4,131.17,131.06,8.02657]
[1764547955855,11.4,131.12,130.95,8.03]
[1764547956062,11.4,131.12,130.98,28.45399869]
[1764547956263,0.04966047,131.05,130.99,62.0]
[1764547956454,0.04966047,131.05,130.98,29.61349869]
[1764547956655,0.04966047,131.05,130.98,8.03]
[1764547956855,0.04966047,131.05,130.98,29.61349869]
[1764547957055,0.04966047,131.05,130.98,8.03]
[1764547957261,0.04966047,131.05,130.97,21.58349869]
[1764547957556,11.4,131.08,130.97,21.58349869]
[1764547957758,0.05362758,131.02,130.97,21.58349869]
[1764547958460,0.05362758,131.02,130.98,8.03]
[1764547958662,11.4,131.14,131.01,29.55349869]
[1764547958873,11.4,131.14,131.01,36.42249869]
[1764547959061,11.4,131.14,131.01,21.58349869]
[1764547959658,11.4,131.12,131.01,21.58349869]
[1764547959858,0.04869506,131.09,131.06,0.0560987]
[1764547960064,0.04869506,131.09,131.06,8.0260987]
[1764547960260,11.4,131.17,131.06,9.5460987]
[1764547960467,11.4,131.3,131.1,29.50349869]
[1764547960663,11.4,131.26,131.14,8.24584923]
[1764547960963,11.4,131.26,131.1,7.92]
[1764547960964,11.4,131.26,131.11,17.7733022]
[1764547961163,11.4,131.26,131.11,25.6933022]
[1764547961464,11.4,131.26,131.17,0.0562229]
[1764547961465,0.05437755,131.2,131.17,0.0562229]
[1764547961667,0.05437755,131.2,131.11,87.6933022]
[1764547961668,11.4,131.2,131.12,6.8635]
[1764547961962,11.4,131.2,131.17,0.04828563]
[1764547962161,0.05658826,131.17,131.11,16.2136926]
[1764547962354,19.016,131.25,131.11,16.2136926]
[1764547962554,11.4,131.24,131.07,21.58349869]
[1764547962760,11.4,131.22,131.03,21.58349869]
[1764547962959,11.4,131.2,131.01,7.92]
[1764547963160,11.4,131.14,131.04,21.58349869]
[1764547963357,11.4,131.11,131.03,6.8684]
[1764547963662,11.4,131.11,130.96,106.8968]
[1764547963663,11.4,131.11,131.0,21.58349869]
[1764547963857,4.92649713,131.1,131.01,7.97]
[1764547964058,4.92649713,131.09,131.04,7.97]
[1764547964262,4.92649713,131.08,131.04,7.97]
[1764547964468,4.98142961,131.07,131.03,21.58349869]
[1764547964665,7.616,131.05,131.03,13.97549869]
[1764547964863,7.616,131.03,131.01,6.8692]
[1764547965164,12.54249713,131.02,131.01,6.8692]
[1764547965360,11.4,131.12,131.01,6.8692]
[1764547965361,7.616,131.11,131.03,6.8683]
[1764547965566,7.616,131.11,131.05,21.58349869]
[1764547965768,7.616,131.11,131.04,21.58349869]
[1764547966068,19.016,131.16,131.05,14.8373]
[1764547966458,0.04899512,131.12,131.05,7.97]
[1764547966657,0.04899512,131.12,131.04,21.58349869]
[1764547966857,19.016,131.16,131.04,21.58349869]
[1764547967057,22.74,131.23,131.04,21.58349869]
[1764547967058,7.616,131.14,131.04,21.58349869]
[1764547967259,19.016,131.14,131.03,28.45179869]
[1764547967461,0.0525333,131.1,131.03,28.45179869]
[1764547967772,0.0525333,131.1,131.03,90.45179869]
[1764547967962,0.0525333,131.1,131.03,6.8683]
[1764547968163,0.0525333,131.1,131.01,21.58349869]
[1764547968464,19.016,131.01,130.9,29.55349869]
[1764547968666,7.616,130.99,130.9,0.59117788]
[1764547968970,0.05628469,130.97,130.88,6.8759]
[1764547969263,7.616,130.99,130.91,21.58349869]
[1764547969465,0.05469547,130.94,130.91,28.45779869]
[1764547969660,7.616,131.03,130.91,21.58349869]
[1764547969867,19.016,131.04,130.94,21.58349869]
[1764547970062,19.016,131.04,130.95,6.8724]
[1764547970369,11.26,131.09,130.98,21.58349869]
[1764547970566,11.26,131.2,131.03,6.8679]
[1764547970771,11.26,131.17,131.02,21.58349869]
[1764547970960,11.26,131.17,131.1,0.05282093]
[1764547970961,0.0495109,131.13,131.1,0.05282093]
[1764547971156,18.876,131.13,131.05,21.58349869]
[1764547971363,0.04991718,131.13,131.1,0.05529819]
[1764547971567,11.26,131.18,131.1,0.05529819]
[1764547971768,11.26,131.18,130.97,106.8867]
[1764547971769,11.31593521,131.13,131.02,21.58349869]
[1764547971967,7.616,131.12,131.02,21.58349869]
[1764547972162,7.616,131.12,131.02,12.04888859]
[1764547972163,18.876,131.12,131.02,12.04888859]
[1764547972466,18.876,131.12,130.92,106.9277]
[1764547972671,11.26,131.11,131.01,21.58349869]
[1764547972871,0.05318588,131.03,131.01,21.58349869]
[1764547973167,18.876,131.11,131.01,21.58349869]
[1764547973470,0.05833798,131.07,131.01,21.58349869]
[1764547973665,0.05375503,131.05,131.01,21.58349869]
[1764547974260,0.05375503,131.05,130.91,136.9968]
[1764547974261,0.05375503,131.05,130.97,28.45459869]
[1764547974459,18.876,131.08,130.97,21.58349869]
[1764547974661,0.05702376,131.02,130.97,13.95206861]
[1764547974871,0.05702376,131.02,130.93,6.8732]
[1764547975074,0.05715987,131.01,130.92,83.58349869]
[1764547975372,7.616,131.0,130.92,21.58349869]
[1764547975558,21.58349869,131.14,130.92,21.58349869]
[1764547975559,7.616,131.06,131.0,6.8696]
[1764547975764,7.616,131.06,131.0,28.45309869]
[1764547975961,11.26,131.12,131.0,17.76906432]
[1764547976168,11.26,131.12,131.03,6.8683]
[1764547976374,11.26,131.12,131.0,17.76906432]
[1764547976572,0.04854791,131.07,131.05,0.04875722]
[1764547976779,7.616,131.11,131.01,21.58349869]
[1764547976974,7.616,131.08,131.01,21.58349869]
[1764547977377,7.616,131.04,130.97,21.58349869]
[1764547977673,7.616,131.02,130.97,21.58349869]
[1764547977889,7.616,131.0,130.97,21.58349869]
[1764547978186,18.876,131.01,130.93,21.58349869]
[1764547978384,0.05162337,130.98,130.93,21.58349869]
[1764547979291,0.05162337,130.98,130.91,21.58349869]
[1764547979489,0.04884563,130.96,130.91,21.58349869]
[1764547979673,0.04884563,130.96,130.92,6.8738]
[1764547979985,0.04884563,130.96,130.91,21.58349869]
[1764547980191,0.04884563,130.96,130.93,6.8733]
[1764547980384,0.04884563,130.96,130.91,21.58349869]
[1764547980770,0.04884563,130.96,130.84,4.20742307]
[1764547981076,0.05575253,130.91,130.87,21.58349869]
[1764547981282,0.05575253,130.91,130.89,6.8754]
[1764547981478,0.05575253,130.91,130.84,4.20742307]
[1764547981479,7.616,130.9,130.84,4.20742307]
[1764547981688,7.616,130.86,130.76,107.0574]
[1764547981881,18.876,130.86,130.78,21.58349869]
[1764547982082,18.876,130.82,130.68,107.1285]
[1764547982284,18.876,130.82,130.66,214.2845]
[1764547982285,18.876,130.82,130.72,21.58349869]
[1764547982580,106.888,130.98,130.67,107.1303]
[1764547982581,0.05236269,130.83,130.78,21.58349869]
[1764547982880,11.26,130.93,130.82,21.58349869]
[1764547983081,5.20362189,131.04,130.82,21.58349869]
[1764547983388,11.26,131.03,130.87,6.8766]
[1764547983590,18.876,130.97,130.86,21.58349869]
[1764547983890,7.616,130.95,130.86,6.877]
[1764547984087,7.616,130.95,130.9,0.04926434]
[1764547984286,11.26,131.0,130.93,21.58349869]
[1764547984496,18.876,130.99,130.92,6.8739]
[1764547984789,11.26,130.96,130.85,8.35544709]
[1764547985178,11.26,130.96,130.84,21.71548566]
[1764547985380,0.05623844,130.92,130.89,0.04812549]
[1764547985587,0.05623844,130.92,130.78,21.71548566]
[1764547985588,11.26,130.9,130.78,21.71548566]
[1764547986283,11.26,130.9,130.82,21.71548566]
[1764547986487,11.26,130.88,130.72,21.71548566]
[1764547986677,11.26,130.85,130.72,20.95593675]
[1764547986887,11.26,130.85,130.75,21.71548566]
[1764547987188,0.0542661,130.81,130.71,6.8848]
[1764547987382,11.3142661,130.81,130.59,107.1982]
[1764547987690,11.3142661,130.81,130.57,244.4898]
[1764547987691,11.26,130.73,130.62,6.8895]
[1764547987892,18.876,130.7,130.59,21.71548566]
[1764547988184,11.26,130.7,130.59,21.71548566]
[1764547988386,0.05199278,130.66,130.63,6.8893]
[1764547988585,0.05199278,130.66,130.57,30.06]
[1764547988779,11.26,130.72,130.62,21.71548566]
[1764547988982,11.26,130.72,130.59,107.1971]
[1764547989181,11.26,130.72,130.57,137.2723]
[1764547989386,11.26,130.72,130.63,6.8893]
[1764547989582,11.26,130.72,130.63,21.71548566]
[1764547989888,11.26,130.84,130.71,28.60038566]
[1764547990092,11.26,130.82,130.71,28.60038566]
[1764547990388,11.26,130.78,130.66,21.71548566]
[1764547990582,11.26,130.76,130.66,21.71548566]
[1764547990784,1.76e-06,130.75,130.7,21.71548566]
[1764547990989,11.26,130.95,130.77,3.05901971]
[1764547991186,11.26,130.95,130.74,21.71548566]
[1764547991489,0.0572973,130.87,130.75,21.71548566]
[1764547991784,11.26,130.87,130.67,107.1351]
[1764547991987,11.26,130.82,130.66,107.1369]
[1764547992179,21.71548566,131.0,130.76,128.77428566]
[1764547992386,11.26,130.99,130.8,19.04160174]
[1764547992691,11.26,130.98,130.75,21.71548566]
[1764547992886,11.26,130.98,130.85,6.8777]
[1764547993087,11.26,130.98,130.82,21.71548566]
[1764547993390,11.31522541,130.91,130.89,0.04996657]
[1764547993588,11.26,130.91,130.82,21.71548566]
[1764547993790,11.26,130.96,130.82,21.71548566]
[1764547994087,0.05515841,130.88,130.86,21.71548566]
[1764547994293,73.22,131.05,130.86,21.71548566]
[1764547994294,11.26,131.01,130.86,21.71548566]
[1764547994490,11.26,131.01,130.85,21.71548566]
[1764547994679,7.616,130.98,130.82,21.71548566]
[1764547994994,11.26,130.95,130.82,21.71548566]
[1764547995296,0.048808,130.9,130.87,6.9283761]
[1764547995493,5.223754,131.03,130.87,6.9283761]
[1764547995494,11.26,131.0,130.87,0.05208655]
[1764547995684,11.26,131.0,130.92,6.8739]
[1764547995991,11.26,131.0,130.82,21.71548566]
[1764547996188,34.0,130.98,130.82,21.71548566]
[1764547996397,5.22344232,131.03,130.79,21.71548566]
[1764547996398,11.26,130.97,130.79,21.71548566]
[1764547996598,11.30857896,130.89,130.8,21.71548566]
[1764547996794,11.26,130.89,130.79,21.71548566]
[1764547996983,11.26,130.89,130.78,21.71548566]
[1764547997184,18.876,130.89,130.78,21.71548566]
[1764547997489,18.876,130.88,130.78,21.71548566]
[1764547997786,0.05694923,130.84,130.82,0.05587123]
[1764547997993,0.05694923,130.84,130.69,30.08]
[1764547998195,11.26,130.86,130.76,21.71548566]
[1764547998391,11.26,130.84,130.72,21.71548566]
[1764547999193,0.05647532,130.79,130.77,0.0394038]
[1764547999392,11.26,130.85,130.76,21.71548566]
[1764547999696,11.26,130.85,130.76,14.16488946]
[1764548000088,11.26,130.85,130.72,21.71548566]
[1764548000287,11.26,130.85,130.71,21.71548566]
[1764548000488,7.616,130.82,130.71,21.71548566]
[1764548000693,0.05420412,130.78,130.72,6.8842]
[1764548000890,0.05420412,130.78,130.67,21.71548566]
[1764548001096,0.05830816,130.74,130.67,21.71548566]
[1764548001782,0.05830816,130.74,130.67,22.48548566]
[1764548002187,7.616,130.78,130.74,0.71]
[1764548002389,12.33,130.85,130.74,21.71548566]
[1764548002584,1.54455652,130.84,130.74,21.71548566]
[1764548002790,1.54455652,130.84,130.7,107.107]
[1764548002791,1.9107962,130.83,130.78,21.71548566]
[1764548002992,9.62e-05,130.82,130.77,107.0518]
[1764548003196,7.616,130.94,130.79,107.0337]
[1764548003387,9.16055652,130.93,130.85,6.8776]
[1764548003594,7.616,130.93,130.8,107.0298]
[1764548003796,12.33,130.98,130.83,107.0055]
[1764548004095,6.40450671,131.09,130.81,107.0187]
[1764548004096,7.616,131.1,130.95,21.71548566]
[1764548004297,0.05579638,131.04,131.01,0.051026]
[1764548004496,7.616,131.03,130.95,21.71548566]
[1764548004688,11.93,131.04,130.95,21.71548566]
[1764548004889,11.93,131.04,130.95,20.95390729]
[1764548005290,11.93,131.04,130.95,14.08180729]
[1764548005499,0.05541266,131.01,130.98,0.05166844]
[1764548005884,0.05541266,131.01,130.96,6.8716]
[1764548006096,0.05541266,131.01,130.96,3.0547628]
[1764548006302,0.05541266,131.01,130.95,21.71548566]
[1764548006492,11.98541266,131.01,130.92,21.71548566]
[1764548006693,11.98541266,131.01,130.84,106.9926]
[1764548006694,19.546,131.01,130.88,21.71548566]
[1764548006900,0.05725768,130.96,130.88,21.71548566]
[1764548007095,8.62349664,131.11,130.92,21.71548566]
[1764548007096,11.93,131.07,130.92,21.71548566]
[1764548007296,11.93,131.07,130.88,106.9579]
[1764548007297,0.05449262,131.01,130.96,21.71548566]
[1764548007600,11.98449262,131.01,130.92,21.71548566]
[1764548007802,0.0490302,130.98,130.92,28.58918566]
[1764548008006,0.0490302,130.98,130.92,21.71548566]
[1764548008301,21.71548566,131.16,130.87,106.9654]
[1764548008302,11.93,131.12,130.97,21.71548566]
[1764548008602,11.93,131.17,131.04,21.71548566]
[1764548008793,11.93,131.17,131.04,8.36538184]
[1764548009101,11.93,131.17,131.06,6.8665]
[1764548009295,11.93,131.17,131.08,21.71548566]
[1764548009497,0.05759748,131.13,131.1,0.05607029]
[1764548009897,11.98759748,131.13,131.1,0.05607029]
[1764548010494,11.93,131.11,131.01,21.71548566]
[1764548010694,11.93,131.11,130.97,21.71548566]
[1764548011004,11.93,131.11,131.0,21.71548566]
[1764548011193,11.93,131.11,130.96,21.71548566]
[1764548011406,0.05301641,131.05,130.96,21.71548566]
[1764548011611,11.93,131.09,130.92,21.71548566]
[1764548011907,11.93,131.01,130.92,21.71548566]
[1764548012205,0.05608109,130.98,130.92,21.71548566]
[1764548012404,0.05545037,130.96,130.92,21.71548566]
[1764548012604,11.93,131.11,130.93,0.05417145]
[1764548012796,11.93,131.11,130.99,21.71548566]
[1764548012996,11.93,131.11,130.89,106.9515]
[1764548013293,11.93,131.11,130.87,106.9674]
[1764548013294,11.93,131.11,130.95,21.71548566]
[1764548013494,11.93,131.03,130.91,21.71548566]
[1764548013805,11.93,131.03,130.87,21.71548566]
[1764548014291,11.93,131.03,130.85,21.71548566]
[1764548014702,7.616,130.94,130.85,21.71548566]
[1764548014902,0.05287832,130.91,130.85,21.71548566]
[1764548015102,0.05287832,130.91,130.86,6.8772]
[1764548015410,0.05287832,130.91,130.78,107.046]
[1764548015411,7.616,130.9,130.68,73.34]
[1764548015700,7.616,130.86,130.74,21.71548566]
[1764548015900,11.93,130.84,130.74,21.71548566]
[1764548016103,0.04948809,130.81,130.72,21.71548566]
[1764548016296,7.616,130.88,130.76,21.71548566]
[1764548016602,7.616,130.86,130.76,15.98374866]
[1764548016801,7.616,130.86,130.62,107.174]
[1764548017007,7.616,130.83,130.71,21.71548566]
[1764548017407,19.546,130.83,130.71,21.71548566]
[1764548017608,19.546,130.81,130.71,21.71548566]
[1764548017909,11.98092105,130.78,130.76,0.052447]
[1764548018295,7.616,130.77,130.76,0.05190729]
[1764548018703,19.546,130.77,130.67,21.71548566]
[1764548019003,11.93,130.8,130.71,21.71548566]
[1764548019505,11.93,130.88,130.71,21.71548566]
[1764548019707,0.05735649,130.81,130.75,21.71548566]
[1764548020110,11.93,130.94,130.8,6.8805]
[1764548020408,11.93,130.94,130.83,21.71548566]
[1764548020712,11.93,130.94,130.84,6.8782]
[1764548020911,11.93,130.94,130.83,21.71548566]
[1764548021114,11.93,130.94,130.87,0.04884293]
[1764548021115,0.04964689,130.9,130.87,0.04884293]
[1764548023808,13.49964689,130.9,130.75,0.05]
[1764548024014,11.93,130.9,130.76,21.71548566]
[1764548024207,11.93,130.9,130.79,6.8808]
[1764548024708,11.93,130.9,130.77,0.05]
[1764548025009,0.05598422,130.85,130.82,6.8791]
[1764548025312,0.05598422,130.85,130.76,0.05]
[1764548025505,0.05660515,130.82,130.76,0.05]
[1764548025707,0.05660515,130.82,130.77,6.8816]
[1764548026114,0.05660515,130.82,130.75,21.71548566]
[1764548026299,11.93,130.91,130.81,0.05]
[1764548027112,11.93,130.91,130.84,6.8779]
[1764548027311,0.04838282,130.89,130.86,0.05312452]
[1764548028414,0.04838282,130.89,130.86,6.93002452]
[1764548029215,0.04838282,130.89,130.88,6.8763]
[1764548029611,0.04838282,130.89,130.83,6.57761018]
[1764548029810,0.04838282,130.89,130.83,21.71548566]
[1764548030014,0.04838282,130.89,130.85,0.6]
[1764548030209,0.04838282,130.89,130.88,6.8763]
[1764548030721,12.17,131.01,130.94,6.8731]
[1764548031020,12.17,131.01,130.88,0.6]
[1764548031021,12.17,131.01,130.91,22.26548566]
[1764548031221,12.17,131.08,130.94,106.9159]
[1764548031431,12.17,131.08,130.98,0.55]
[1764548031721,12.17,131.08,131.01,6.869]
[1764548031920,0.05417464,131.04,131.02,0.05472758]
[1764548032216,12.22417464,131.04,131.02,0.05472758]
[1764548032417,12.22417464,131.04,130.91,0.55]
[1764548032617,12.17,131.03,130.9,14.64948566]
[1764548032818,12.17,131.03,130.87,106.9716]
[1764548033015,12.17,131.03,130.88,21.71548566]
[1764548033424,0.04996637,130.97,130.96,6.8718]
[1764548033620,0.05588191,130.98,130.88,21.71548566]
[1764548033823,0.05430733,130.94,130.92,6.874]
[1764548034021,0.05449499,130.94,130.88,21.71548566]
[1764548034217,12.17,131.04,130.9,106.9469]
[1764548034414,12.17,131.04,130.93,106.9233]
[1764548034724,12.17,131.04,130.93,106.9225]
[1764548034909,11.7001908,131.13,130.94,106.9134]
[1764548034910,12.17,131.13,130.94,106.9134]
[1764548035108,12.17,131.13,131.02,0.05732626]
[1764548035419,12.22356515,131.09,131.06,0.05747592]
[1764548035619,12.22883069,131.09,131.06,0.05871655]
[1764548035922,12.22883069,131.09,130.96,21.71548566]
[1764548036125,12.17,131.09,130.96,21.71548566]
[1764548036322,12.17,131.09,130.97,106.8912]
[1764548036527,12.17,131.09,130.96,128.67178566]
[1764548036823,0.04827011,131.04,130.93,106.9815]
[1764548037026,0.05491033,131.0,130.94,0.06]
[1764548037228,0.05491033,131.0,130.92,21.71548566]
[1764548037524,0.05503403,130.97,130.92,21.77548566]
[1764548037819,12.17,131.05,130.92,21.77548566]
[1764548037820,0.05382157,130.96,130.95,6.8726]
[1764548038028,22.9,131.1,130.88,106.9623]
[1764548038029,0.0542326,130.97,130.88,21.71548566]
[1764548038228,0.05078339,130.94,130.93,6.8733]
[1764548038421,0.05701322,130.95,130.88,21.71548566]
[1764548038720,0.05034955,130.93,130.91,6.9343]
[1764548038920,0.05529697,130.93,130.89,0.06]
[1764548039122,12.17,131.06,130.92,128.64308566]
[1764548039318,12.17,131.06,131.0,6.8699]
[1764548039520,12.17,131.06,130.96,21.71548566]
[1764548039729,12.17,131.06,131.02,6.8685]
[1764548039920,12.17,131.06,130.96,21.71548566]
[1764548040120,0.05140801,131.02,131.0,0.05859379]
[1764548040525,0.05140801,131.02,131.01,6.8691]
[1764548041336,12.17,131.15,131.01,1.52]
[1764548041635,12.17,131.15,131.0,106.8639]
[1764548041826,12.17,131.15,130.99,21.71548566]
[1764548042027,12.17,131.15,131.01,106.8547]
[1764548042425,0.05777695,131.09,131.08,6.8658]
[1764548042730,7.695e-05,131.09,130.97,106.8882]
[1764548042924,7.695e-05,131.09,130.96,119.0243]
[1764548042925,7.695e-05,131.09,130.96,12.13]
[1764548043132,7.695e-05,131.09,130.93,13.7473]
[1764548043332,21.71548566,131.09,130.91,106.9352]
[1764548043640,51.01999237,131.09,130.88,106.9607]
[1764548043832,0.05333224,131.01,130.89,106.9503]
[1764548044029,5.30625964,131.08,130.92,106.9273]
[1764548044234,21.71548566,131.09,130.9,106.9476]
[1764548044434,28.11999237,131.09,130.9,106.9476]
[1764548044736,12.17,131.07,130.93,106.9204]
[1764548045124,0.05690221,131.01,130.99,0.05498531]
[1764548045335,12.17,131.07,131.02,6.8688]
[1764548045633,12.22739262,131.06,131.02,6.8688]
[1764548045829,12.17,131.06,131.02,6.8688]
[1764548046335,13.69,131.06,130.94,33.96]
[1764548046537,12.17,131.06,130.94,33.96]
[1764548046833,12.21843868,131.01,130.94,33.96]
[1764548047228,12.21843868,131.01,130.96,0.002]
[1764548047431,12.21843868,131.01,130.94,33.96]
[1764548047432,12.21843868,131.01,130.94,24.31]
[1764548047626,1.52,131.0,130.94,24.31]
[1764548047830,0.05579336,130.98,130.94,24.31]
[1764548048332,1.57579336,130.98,130.94,24.31]
[1764548048530,1.57579336,130.98,130.94,21.95761104]
[1764548048840,1.57579336,130.98,130.94,14.34161104]
[1764548049142,20.31840645,130.98,130.94,10.92031304]
[1764548049342,0.05579336,130.98,130.94,10.92031304]
[1764548049534,1.52,130.97,130.94,10.92031304]
[1764548049733,0.05579336,130.98,130.94,10.92031304]
[1764548050635,0.05579336,130.98,130.96,6.8716]
[1764548050831,11.71076635,131.08,130.98,106.882]
[1764548051032,6.40450671,131.11,130.98,106.882]
[1764548051239,6.40450671,131.11,131.04,6.8675]
[1764548051436,6.40450671,131.11,131.01,106.8564]
[1764548051637,11.71076635,131.14,131.1,6.8647]
[1764548051829,6.40450671,131.16,131.05,106.824]
[1764548052140,0.04953275,131.13,131.11,6.92047237]
[1764548052337,11.71076635,131.2,131.07,106.8067]
[1764548052536,0.05855823,131.13,131.11,0.0558652]
[1764548052736,5.964e-05,131.2,131.18,6.8605]
[1764548052936,82.42,131.21,131.18,6.8605]
[1764548053139,6.40450671,131.27,131.18,1.51994348]
[1764548053334,6.40450671,131.3,131.2,106.7039]
[1764548053545,6.40450671,131.34,131.2,106.7039]
[1764548053844,6.40450671,131.33,131.21,108.21324348]
[1764548054044,29.9,131.39,131.21,108.21324348]
[1764548054045,6.40450671,131.37,131.24,106.6701]
[1764548054339,0.05676102,131.28,131.27,6.8558]
[1764548054544,6.40450671,131.39,131.23,1.51994348]
[1764548054732,0.05132437,131.29,131.26,0.05692286]
[1764548054928,6.40450671,131.39,131.26,106.6543]
[1764548055133,82.44,131.4,131.27,1.51994348]
[1764548055341,0.05694149,131.34,131.31,6.90678306]
[1764548055542,6.40450671,131.39,131.28,106.638]
[1764548055744,0.05151716,131.34,131.31,0.05846817]
[1764548056040,82.44,131.4,131.32,1.51994348]
[1764548056240,82.44,131.4,131.31,0.04999184]
[1764548056542,82.44,131.4,131.32,6.8531]
[1764548056739,0.05140314,131.35,131.33,0.05500717]
[1764548057042,82.44,131.4,131.33,0.05500717]
[1764548057235,0.05283846,131.35,131.34,1.51994348]
[1764548057432,82.44,131.4,131.34,1.51994348]
[1764548057631,0.05236126,131.36,131.27,25.30810638]
[1764548057837,82.44,131.4,131.28,1.51994348]
[1764548058150,0.05132842,131.33,131.25,1.51994348]
[1764548058439,12.33810638,131.38,131.22,1.51994348]
[1764548058644,0.05156682,131.3,131.28,0.05795257]
[1764548058840,0.05394911,131.3,131.28,0.05842209]
[1764548059039,0.05394911,131.3,131.28,1.57836557]
[1764548059839,82.44,131.4,131.28,1.57836557]
[1764548060041,82.44,131.4,131.32,6.8532]
[1764548060642,82.44,131.4,131.26,117.3703]
[1764548060643,82.44,131.4,131.29,6.8546]
[1764548060837,0.0519674,131.36,131.33,0.05455606]
[1764548061545,1.5719674,131.36,131.33,0.05455606]
[1764548062432,0.0519674,131.36,131.33,0.05455606]
[1764548062639,7.92450671,131.35,131.26,10.72]
[1764548062836,12.33810638,131.32,131.26,10.72]
[1764548063741,0.05703757,131.3,131.28,0.05746033]
[1764548064049,52.72,131.29,131.28,0.05746033]
[1764548064732,59.41607955,131.29,131.28,0.05746033]
[1764548065452,65.82058626,131.29,131.19,6.8599]
[1764548065637,22.9,131.25,131.16,6.8614]
[1764548066238,29.30450671,131.25,131.16,6.8614]
[1764548066435,22.9,131.22,131.13,6.8629]
[1764548066639,12.33810638,131.23,131.13,6.8629]
[1764548066640,35.23810638,131.2,131.13,6.8629]
[1764548066839,0.04804194,131.19,131.16,0.05246552]
[1764548067039,0.04983959,131.19,131.16,0.04824794]
[1764548068042,1.56983959,131.19,131.16,0.04824794]
[1764548068248,6.40450671,131.17,131.16,0.04824794]
[1764548068543,59.10450671,131.17,131.16,0.04824794]
[1764548068746,72.40777827,131.17,130.95,106.9057]
[1764548068953,12.33810638,131.09,130.96,1.57449954]
[1764548069445,153.32543345,131.08,130.96,1.57449954]
[1764548069645,35.23810638,131.05,130.91,14.61349954]
[1764548069847,0.05762775,130.99,130.94,6.873]
[1764548070235,0.05762775,130.99,130.91,14.61349954]
[1764548070438,0.04981799,130.96,130.94,6.8729]
[1764548070643,0.05140684,130.96,130.91,14.61349954]
[1764548071040,0.05140684,130.96,130.85,106.9869]
[1764548071236,0.04896474,130.92,130.88,12.12]
[1764548071548,0.04992199,130.91,130.88,6.8758]
[1764548071744,5.17607955,131.01,130.87,12.12]
[1764548072233,5.17607955,131.01,130.87,119.0872]
[1764548072439,5.17607955,131.01,130.92,6.8741]
[1764548072638,5.17607955,131.01,130.88,106.9646]
[1764548072838,0.05418957,130.96,130.93,0.05351033]
[1764548073040,0.05418957,130.96,130.93,0.05714813]
[1764548074143,0.05418957,130.96,130.94,6.8731]
[1764548075143,5.17330572,131.05,130.96,106.8968]
[1764548075343,5.17330572,131.08,130.96,119.0168]
[1764548075543,29.8,131.09,131.02,6.8687]
[1764548075746,29.8,131.09,130.93,12.33810638]
[1764548075947,29.8,131.09,130.92,14.58]